[Event "Late-Titled-Tuesday-Blitz-February-27-2024"]
[Site "Chess.com"]
[Date "2024.02.27"]
[Round "4"]
[White "Ali_rastbod"]
[Black "DanylaBagrov"]
[Result "1-0"]
[WhiteElo "2715"]
[BlackElo "2531"]
[TimeControl "180+1"]
[EndTime "14:38:29 PST"]
[Termination "Ali_rastbod won by resignation"]

1. Nf3 {[%clk 0:03:00.9]} 1... d6 {[%clk 0:02:57.8]} 2. c4 {[%clk 0:03:01.5]}
2... f5 {[%clk 0:02:56.7]} 3. Nc3 {[%clk 0:03:00.8]} 3... Nf6 {[%clk 0:02:56.8]}
4. g3 {[%clk 0:03:00.3]} 4... e5 {[%clk 0:02:55.2]} 5. Bg2 {[%clk 0:03:01]} 5...
Be7 {[%clk 0:02:54]} 6. O-O {[%clk 0:03:01.5]} 6... O-O {[%clk 0:02:52.4]} 7. d3
{[%clk 0:03:02.1]} 7... c6 {[%clk 0:02:44.2]} 8. Rb1 {[%clk 0:03:02.6]} 8... a5
{[%clk 0:02:37.1]} 9. a3 {[%clk 0:03:02.7]} 9... h6 {[%clk 0:02:32.1]} 10. b4
{[%clk 0:02:59.4]} 10... axb4 {[%clk 0:02:30.3]} 11. axb4 {[%clk 0:03:00.3]}
11... g5 {[%clk 0:02:28.6]} 12. b5 {[%clk 0:02:57.5]} 12... f4 {[%clk
0:02:23.8]} 13. bxc6 {[%clk 0:02:54.2]} 13... Nxc6 {[%clk 0:02:13.1]} 14. Nd2
{[%clk 0:02:53.7]} 14... h5 {[%clk 0:01:41.4]} 15. Nde4 {[%clk 0:02:51]} 15...
h4 {[%clk 0:01:25.2]} 16. Nxg5 {[%clk 0:02:42.5]} 16... hxg3 {[%clk 0:01:23.9]}
17. hxg3 {[%clk 0:02:39.8]} 17... Ng4 {[%clk 0:01:18.4]} 18. Bd5+ {[%clk
0:02:27.9]} 18... Kg7 {[%clk 0:01:15.6]} 19. Ne6+ {[%clk 0:02:25.4]} 19... Bxe6
{[%clk 0:01:14.6]} 20. Bxe6 {[%clk 0:02:26.3]} 20... Nxf2 {[%clk 0:00:52.1]} 21.
Rxf2 {[%clk 0:02:23.2]} 21... Nd4 {[%clk 0:00:46.9]} 22. Bd5 {[%clk 0:02:07.2]}
22... fxg3 {[%clk 0:00:44.8]} 23. Rxf8 {[%clk 0:01:52.1]} 23... Qxf8 {[%clk
0:00:36.5]} 24. Qf1 {[%clk 0:01:50.3]} 24... Qxf1+ {[%clk 0:00:16.9]} 25. Kxf1
{[%clk 0:01:49.2]} 25... Rf8+ {[%clk 0:00:16.6]} 26. Kg2 {[%clk 0:01:48.2]}
26... Rf2+ {[%clk 0:00:09.4]} 27. Kxg3 {[%clk 0:01:48.1]} 27... Rf1 {[%clk
0:00:09.2]} 28. Bh6+ {[%clk 0:01:47.2]} 28... Kxh6 {[%clk 0:00:08.4]} 29. Rxf1
{[%clk 0:01:48.1]} 29... Kg5 {[%clk 0:00:09.1]} 30. Ne4+ {[%clk 0:01:47.3]}
30... Kg6 {[%clk 0:00:09.1]} 31. e3 {[%clk 0:01:46.1]} 31... Nf5+ {[%clk
0:00:09.5]} 32. Kf3 {[%clk 0:01:46.6]} 32... Nh4+ {[%clk 0:00:08.7]} 33. Ke2
{[%clk 0:01:47.2]} 1-0

[Event "Late-Titled-Tuesday-Blitz-February-27-2024"]
[Site "Chess.com"]
[Date "2024.02.27"]
[Round "4"]
[White "HandKnit"]
[Black "pinguino120"]
[Result "1-0"]
[WhiteElo "2520"]
[BlackElo "2368"]
[TimeControl "180+1"]
[EndTime "14:38:42 PST"]
[Termination "HandKnit won by resignation"]

1. e4 {[%clk 0:03:00.9]} 1... c6 {[%clk 0:02:57.4]} 2. d4 {[%clk 0:02:59.6]}
2... d5 {[%clk 0:02:55.5]} 3. Nc3 {[%clk 0:03:00.2]} 3... dxe4 {[%clk
0:02:54.7]} 4. Nxe4 {[%clk 0:03:01.1]} 4... Nf6 {[%clk 0:02:55.3]} 5. Ng3 {[%clk
0:02:57.8]} 5... Bg4 {[%clk 0:02:50.6]} 6. Be2 {[%clk 0:02:56.5]} 6... Bxe2
{[%clk 0:02:50.3]} 7. N1xe2 {[%clk 0:02:57.2]} 7... e6 {[%clk 0:02:50.1]} 8. Bf4
{[%clk 0:02:57.1]} 8... Bd6 {[%clk 0:02:49.9]} 9. Qd2 {[%clk 0:02:55.7]} 9...
O-O {[%clk 0:02:45.3]} 10. O-O {[%clk 0:02:51.2]} 10... Bxf4 {[%clk 0:02:39.6]}
11. Qxf4 {[%clk 0:02:49.2]} 11... Nbd7 {[%clk 0:02:35]} 12. c3 {[%clk
0:02:44.7]} 12... Qb6 {[%clk 0:02:32.6]} 13. b3 {[%clk 0:02:40.7]} 13... c5
{[%clk 0:02:32]} 14. dxc5 {[%clk 0:02:31.1]} 14... Nxc5 {[%clk 0:02:29.2]} 15.
Rad1 {[%clk 0:02:26.7]} 15... Rfd8 {[%clk 0:02:28.3]} 16. Qc4 {[%clk 0:02:16.6]}
16... h6 {[%clk 0:02:19.5]} 17. Nd4 {[%clk 0:02:13.4]} 17... Rac8 {[%clk
0:02:13.1]} 18. Qe2 {[%clk 0:01:36.8]} 18... Nd5 {[%clk 0:02:12]} 19. Qg4 {[%clk
0:01:21.1]} 19... Nxc3 {[%clk 0:01:43.3]} 20. Rde1 {[%clk 0:01:16.3]} 20... Nd7
{[%clk 0:01:27.2]} 21. Nh5 {[%clk 0:01:11.3]} 21... g6 {[%clk 0:01:27.2]} 22.
Rxe6 {[%clk 0:01:04.9]} 22... Ne5 {[%clk 0:01:12]} 23. Rxe5 {[%clk 0:00:43.1]}
23... Rxd4 {[%clk 0:00:55.1]} 24. Qxc8+ {[%clk 0:00:41.8]} 24... Kh7 {[%clk
0:00:48.5]} 25. Qxc3 {[%clk 0:00:39.4]} 25... gxh5 {[%clk 0:00:47.4]} 26. Qe3
{[%clk 0:00:35.2]} 1-0

[Event "Late-Titled-Tuesday-Blitz-February-27-2024"]
[Site "Chess.com"]
[Date "2024.02.27"]
[Round "4"]
[White "WPWPWP-2015"]
[Black "mishanick"]
[Result "0-1"]
[WhiteElo "2427"]
[BlackElo "3054"]
[TimeControl "180+1"]
[EndTime "14:38:48 PST"]
[Termination "mishanick won by resignation"]

1. e4 {[%clk 0:03:00.9]} 1... c5 {[%clk 0:02:58.7]} 2. Nf3 {[%clk 0:03:00.6]}
2... e6 {[%clk 0:02:59.2]} 3. b3 {[%clk 0:03:00]} 3... Nc6 {[%clk 0:02:59.3]} 4.
Bb5 {[%clk 0:02:59.2]} 4... Nge7 {[%clk 0:02:55.2]} 5. O-O {[%clk 0:02:57.9]}
5... a6 {[%clk 0:02:55.7]} 6. Bxc6 {[%clk 0:02:57.9]} 6... Nxc6 {[%clk
0:02:56.6]} 7. Bb2 {[%clk 0:02:58]} 7... d5 {[%clk 0:02:47.5]} 8. exd5 {[%clk
0:02:57.1]} 8... exd5 {[%clk 0:02:47.2]} 9. d4 {[%clk 0:02:56]} 9... Be7 {[%clk
0:02:42.9]} 10. dxc5 {[%clk 0:02:54.8]} 10... O-O {[%clk 0:02:43.5]} 11. h3
{[%clk 0:02:51.7]} 11... Bxc5 {[%clk 0:02:43.1]} 12. Nc3 {[%clk 0:02:47.7]}
12... d4 {[%clk 0:02:41.7]} 13. Ne2 {[%clk 0:02:41.1]} 13... d3 {[%clk 0:02:34]}
14. Qxd3 {[%clk 0:02:39.2]} 14... Qxd3 {[%clk 0:02:34.5]} 15. cxd3 {[%clk
0:02:39.1]} 15... Re8 {[%clk 0:02:34.7]} 16. Nf4 {[%clk 0:02:33.7]} 16... Bf5
{[%clk 0:02:35.1]} 17. a3 {[%clk 0:02:25.3]} 17... Rad8 {[%clk 0:02:33.8]} 18.
Rfe1 {[%clk 0:02:23.4]} 18... f6 {[%clk 0:02:30.6]} 19. g4 {[%clk 0:02:17.2]}
19... Bc8 {[%clk 0:02:27.8]} 20. Rxe8+ {[%clk 0:02:08.1]} 20... Rxe8 {[%clk
0:02:27.8]} 21. Re1 {[%clk 0:02:06.6]} 21... Rd8 {[%clk 0:02:15.9]} 22. d4
{[%clk 0:01:50.5]} 22... Bd6 {[%clk 0:02:11.6]} 23. Ne6 {[%clk 0:01:33.4]} 23...
Bxe6 {[%clk 0:02:10.4]} 24. Rxe6 {[%clk 0:01:31.7]} 24... Ne7 {[%clk 0:02:10.7]}
25. g5 {[%clk 0:01:08.8]} 25... Nd5 {[%clk 0:02:09.5]} 26. gxf6 {[%clk
0:01:05.5]} 26... gxf6 {[%clk 0:02:10.4]} 27. Bc1 {[%clk 0:00:42.8]} 27... Kf7
{[%clk 0:02:09.3]} 28. Re1 {[%clk 0:00:41.5]} 28... Rc8 {[%clk 0:02:10]} 29. Nd2
{[%clk 0:00:15.5]} 29... Rc2 {[%clk 0:02:10.4]} 30. Nc4 {[%clk 0:00:13.7]} 30...
Bf8 {[%clk 0:02:07.3]} 31. Ne3 {[%clk 0:00:13.6]} 31... Nxe3 {[%clk 0:02:04.5]}
32. Bxe3 {[%clk 0:00:13.2]} 32... Bxa3 {[%clk 0:02:03.6]} 33. d5 {[%clk
0:00:13.4]} 33... Rc3 {[%clk 0:02:01.5]} 34. Rd1 {[%clk 0:00:12.4]} 34... Bd6
{[%clk 0:02:00.9]} 35. b4 {[%clk 0:00:10.1]} 35... Rc4 {[%clk 0:01:56.4]} 36.
Bc5 {[%clk 0:00:08.9]} 36... Bxc5 {[%clk 0:01:56.6]} 37. bxc5 {[%clk 0:00:09.2]}
37... Rxc5 {[%clk 0:01:57]} 38. d6 {[%clk 0:00:09.3]} 38... Rc8 {[%clk
0:01:57.6]} 39. Rb1 {[%clk 0:00:06.6]} 39... b5 {[%clk 0:01:57.1]} 40. Ra1
{[%clk 0:00:06.8]} 40... Rc6 {[%clk 0:01:57.4]} 41. d7 {[%clk 0:00:06.5]} 41...
Ke7 {[%clk 0:01:57.5]} 42. Rd1 {[%clk 0:00:06.7]} 42... Kd8 {[%clk 0:01:57.9]}
43. Kg2 {[%clk 0:00:07.2]} 43... Rb6 {[%clk 0:01:58.3]} 44. Kf3 {[%clk
0:00:07.4]} 44... b4 {[%clk 0:01:58.9]} 45. Ke4 {[%clk 0:00:07.1]} 45... b3
{[%clk 0:01:59.4]} 46. Rb1 {[%clk 0:00:05.7]} 46... Kxd7 {[%clk 0:01:59.2]} 47.
Kd4 {[%clk 0:00:05.9]} 47... Rb5 {[%clk 0:01:59.5]} 48. Kc4 {[%clk 0:00:05.8]}
48... Ke6 {[%clk 0:02:00.3]} 0-1

[Event "Late-Titled-Tuesday-Blitz-February-27-2024"]
[Site "Chess.com"]
[Date "2024.02.27"]
[Round "4"]
[White "farzadbfd"]
[Black "Practical-Play"]
[Result "0-1"]
[WhiteElo "2686"]
[BlackElo "2543"]
[TimeControl "180+1"]
[EndTime "14:38:53 PST"]
[Termination "Practical-Play won by resignation"]

1. d4 {[%clk 0:03:00.9]} 1... d5 {[%clk 0:02:58.1]} 2. c4 {[%clk 0:03:00.3]}
2... Nf6 {[%clk 0:02:54.4]} 3. cxd5 {[%clk 0:02:59.6]} 3... Nxd5 {[%clk
0:02:55.3]} 4. e4 {[%clk 0:02:59.4]} 4... Nf6 {[%clk 0:02:55.6]} 5. Nc3 {[%clk
0:02:59]} 5... e5 {[%clk 0:02:55.9]} 6. Nf3 {[%clk 0:02:34.7]} 6... exd4 {[%clk
0:02:55.1]} 7. Qxd4 {[%clk 0:02:35.6]} 7... Qxd4 {[%clk 0:02:54.9]} 8. Nxd4
{[%clk 0:02:36.5]} 8... a6 {[%clk 0:02:55.3]} 9. Bg5 {[%clk 0:02:16.9]} 9...
Nbd7 {[%clk 0:02:47.3]} 10. Bc4 {[%clk 0:01:19.4]} 10... Bb4 {[%clk 0:02:41.3]}
11. O-O {[%clk 0:01:19.3]} 11... O-O {[%clk 0:02:40.5]} 12. f3 {[%clk
0:01:14.2]} 12... b5 {[%clk 0:02:31.5]} 13. Bd5 {[%clk 0:01:12.5]} 13... Bxc3
{[%clk 0:02:24]} 14. bxc3 {[%clk 0:01:11.7]} 14... Nxd5 {[%clk 0:02:23.9]} 15.
exd5 {[%clk 0:01:12]} 15... Nb6 {[%clk 0:02:18.5]} 16. Rad1 {[%clk 0:00:44.2]}
16... Nxd5 {[%clk 0:02:05.8]} 17. Nxb5 {[%clk 0:00:42.8]} 17... axb5 {[%clk
0:02:02.6]} 18. Rxd5 {[%clk 0:00:43.4]} 18... Rxa2 {[%clk 0:02:03.1]} 19. Rxb5
{[%clk 0:00:42.7]} 19... Ba6 {[%clk 0:02:03.2]} 20. Rfb1 {[%clk 0:00:06.6]}
20... Bxb5 {[%clk 0:01:59.9]} 21. Rxb5 {[%clk 0:00:07.5]} 21... h6 {[%clk
0:01:55.6]} 22. Bf4 {[%clk 0:00:07.4]} 22... Rd8 {[%clk 0:01:48.7]} 23. h4
{[%clk 0:00:07.4]} 23... Rc2 {[%clk 0:01:32.4]} 24. Rc5 {[%clk 0:00:07.2]} 24...
Rd3 {[%clk 0:01:31.6]} 25. Be5 {[%clk 0:00:04.8]} 25... Rdd2 {[%clk 0:01:24.9]}
26. Rxc7 {[%clk 0:00:04.3]} 26... Rxg2+ {[%clk 0:01:25.1]} 27. Kf1 {[%clk
0:00:04.7]} 27... Rgd2 {[%clk 0:01:22.8]} 28. Ke1 {[%clk 0:00:03.8]} 28... Ra2
{[%clk 0:01:19.7]} 29. Rc8+ {[%clk 0:00:03.4]} 29... Kh7 {[%clk 0:01:19.5]} 30.
c4 {[%clk 0:00:03.8]} 30... Re2+ {[%clk 0:01:19.1]} 0-1

[Event "Late-Titled-Tuesday-Blitz-February-27-2024"]
[Site "Chess.com"]
[Date "2024.02.27"]
[Round "4"]
[White "jamengrand"]
[Black "Nf3c5"]
[Result "0-1"]
[WhiteElo "2393"]
[BlackElo "2566"]
[TimeControl "180+1"]
[EndTime "14:38:55 PST"]
[Termination "Nf3c5 won by resignation"]

1. e4 {[%clk 0:03:00.9]} 1... c5 {[%clk 0:02:57.1]} 2. Nf3 {[%clk 0:03:00.8]}
2... Nc6 {[%clk 0:02:55.6]} 3. d4 {[%clk 0:02:56.4]} 3... cxd4 {[%clk
0:02:55.3]} 4. Nxd4 {[%clk 0:02:55.8]} 4... e5 {[%clk 0:02:53.8]} 5. Nb5 {[%clk
0:02:54.8]} 5... d6 {[%clk 0:02:53.4]} 6. N5a3 {[%clk 0:02:54.1]} 6... f5 {[%clk
0:02:45.6]} 7. Nc3 {[%clk 0:02:30.7]} 7... Nf6 {[%clk 0:02:35.6]} 8. Bg5 {[%clk
0:02:23.4]} 8... Be7 {[%clk 0:02:10]} 9. Bxf6 {[%clk 0:02:22.5]} 9... Bxf6
{[%clk 0:02:09.2]} 10. Nc4 {[%clk 0:02:21.5]} 10... Nd4 {[%clk 0:02:07.9]} 11.
exf5 {[%clk 0:02:17.1]} 11... Bxf5 {[%clk 0:02:06.1]} 12. Ne3 {[%clk 0:02:16.9]}
12... Be6 {[%clk 0:01:57.4]} 13. Ncd5 {[%clk 0:02:16.5]} 13... Bxd5 {[%clk
0:01:36.5]} 14. Nxd5 {[%clk 0:02:15.5]} 14... Qa5+ {[%clk 0:01:37.1]} 15. Nc3
{[%clk 0:02:15.6]} 15... Rc8 {[%clk 0:01:37.3]} 16. Bd3 {[%clk 0:02:07.9]} 16...
O-O {[%clk 0:01:13.5]} 17. O-O {[%clk 0:02:05.2]} 17... d5 {[%clk 0:01:12.2]}
18. Qh5 {[%clk 0:01:39.4]} 18... g6 {[%clk 0:01:10.5]} 19. Qh3 {[%clk
0:01:28.7]} 19... e4 {[%clk 0:01:07]} 20. b4 {[%clk 0:01:07.5]} 20... Qd8 {[%clk
0:01:00.5]} 21. Nxe4 {[%clk 0:00:53.9]} 21... dxe4 {[%clk 0:00:57.7]} 22. Bxe4
{[%clk 0:00:54]} 22... Ne2+ {[%clk 0:00:56.7]} 23. Kh1 {[%clk 0:00:54]} 23...
Bxa1 {[%clk 0:00:57.3]} 24. Rxa1 {[%clk 0:00:51.1]} 24... Qd4 {[%clk 0:00:52.6]}
25. Qe6+ {[%clk 0:00:49.9]} 25... Kh8 {[%clk 0:00:51.9]} 26. Re1 {[%clk
0:00:35.4]} 26... Rce8 {[%clk 0:00:44.4]} 0-1

[Event "Late-Titled-Tuesday-Blitz-February-27-2024"]
[Site "Chess.com"]
[Date "2024.02.27"]
[Round "4"]
[White "AlexeiShirov"]
[Black "elchacal664"]
[Result "1-0"]
[WhiteElo "2846"]
[BlackElo "2417"]
[TimeControl "180+1"]
[EndTime "14:38:57 PST"]
[Termination "AlexeiShirov won by resignation"]

1. e4 {[%clk 0:02:57.8]} 1... c5 {[%clk 0:02:59.1]} 2. Nf3 {[%clk 0:02:57]} 2...
d6 {[%clk 0:02:59.4]} 3. d4 {[%clk 0:02:55.8]} 3... cxd4 {[%clk 0:03:00.3]} 4.
Nxd4 {[%clk 0:02:55.8]} 4... Nf6 {[%clk 0:03:01.2]} 5. Nc3 {[%clk 0:02:55.4]}
5... a6 {[%clk 0:03:02.1]} 6. Be3 {[%clk 0:02:54.4]} 6... g6 {[%clk 0:03:01.9]}
7. f3 {[%clk 0:02:52.4]} 7... Bg7 {[%clk 0:03:01.7]} 8. Qd2 {[%clk 0:02:52.2]}
8... h5 {[%clk 0:03:00.7]} 9. Bc4 {[%clk 0:02:44.1]} 9... b5 {[%clk 0:02:59.7]}
10. Bd5 {[%clk 0:02:40.5]} 10... Nxd5 {[%clk 0:02:57.5]} 11. Nxd5 {[%clk
0:02:40.1]} 11... Bb7 {[%clk 0:02:55.3]} 12. O-O-O {[%clk 0:02:37.2]} 12... Nd7
{[%clk 0:02:54.4]} 13. Bg5 {[%clk 0:02:32.5]} 13... Bf8 {[%clk 0:02:32.5]} 14.
Rhe1 {[%clk 0:02:29.1]} 14... Rc8 {[%clk 0:02:30]} 15. Kb1 {[%clk 0:02:28.1]}
15... Ne5 {[%clk 0:02:22]} 16. b3 {[%clk 0:02:24.5]} 16... Nc6 {[%clk
0:01:41.7]} 17. Nf5 {[%clk 0:02:23.1]} 17... gxf5 {[%clk 0:01:20.8]} 18. exf5
{[%clk 0:02:21.8]} 18... Ne5 {[%clk 0:01:20.4]} 19. f4 {[%clk 0:02:20.4]} 19...
Bxd5 {[%clk 0:01:15.6]} 20. fxe5 {[%clk 0:02:19.5]} 20... dxe5 {[%clk
0:01:15.4]} 21. Rxe5 {[%clk 0:02:14.3]} 21... Bc6 {[%clk 0:01:03.7]} 22. Qe2
{[%clk 0:02:11.2]} 22... Qc7 {[%clk 0:00:47.5]} 23. Bxe7 {[%clk 0:02:09.8]}
23... Bxe7 {[%clk 0:00:44.7]} 24. f6 {[%clk 0:02:09.8]} 24... Kf8 {[%clk
0:00:31.9]} 25. fxe7+ {[%clk 0:01:54.6]} 25... Ke8 {[%clk 0:00:31.3]} 26. Rc5
{[%clk 0:01:27.8]} 26... Rh6 {[%clk 0:00:24]} 27. Rxh5 {[%clk 0:01:13.9]} 27...
Rxh5 {[%clk 0:00:19.2]} 28. Qxh5 {[%clk 0:01:12.3]} 28... Be4 {[%clk 0:00:18.9]}
29. Qh8+ {[%clk 0:01:12]} 29... Kxe7 {[%clk 0:00:18.7]} 30. Qh4+ {[%clk
0:01:12.6]} 30... Ke8 {[%clk 0:00:15.3]} 31. Qxe4+ {[%clk 0:01:12.9]} 1-0

[Event "Late-Titled-Tuesday-Blitz-February-27-2024"]
[Site "Chess.com"]
[Date "2024.02.27"]
[Round "4"]
[White "Smile2005"]
[Black "ninguno46"]
[Result "0-1"]
[WhiteElo "2397"]
[BlackElo "2587"]
[TimeControl "180+1"]
[EndTime "14:39:00 PST"]
[Termination "ninguno46 won by checkmate"]

1. e4 {[%clk 0:03:00.9]} 1... c5 {[%clk 0:02:58.9]} 2. Nf3 {[%clk 0:03:01.3]}
2... Nc6 {[%clk 0:02:58.5]} 3. d4 {[%clk 0:03:01.1]} 3... cxd4 {[%clk
0:02:58.6]} 4. Nxd4 {[%clk 0:03:02]} 4... g6 {[%clk 0:02:58.9]} 5. c4 {[%clk
0:03:02]} 5... Nf6 {[%clk 0:02:58.4]} 6. Nc3 {[%clk 0:03:01.9]} 6... d6 {[%clk
0:02:58.9]} 7. Be3 {[%clk 0:03:02.3]} 7... Ng4 {[%clk 0:02:56.9]} 8. Nxc6 {[%clk
0:03:01.4]} 8... bxc6 {[%clk 0:02:56.1]} 9. Bd4 {[%clk 0:03:01.7]} 9... e5
{[%clk 0:02:55.6]} 10. Be3 {[%clk 0:03:01.9]} 10... Nxe3 {[%clk 0:02:55.8]} 11.
fxe3 {[%clk 0:03:02.8]} 11... Bh6 {[%clk 0:02:55.3]} 12. Qd2 {[%clk 0:03:01.4]}
12... O-O {[%clk 0:02:54.4]} 13. Be2 {[%clk 0:03:01.5]} 13... Qb6 {[%clk
0:02:53.6]} 14. Rb1 {[%clk 0:02:44.3]} 14... Bxe3 {[%clk 0:02:48.9]} 15. Qxd6
{[%clk 0:02:43.8]} 15... Bf2+ {[%clk 0:02:43.7]} 16. Kf1 {[%clk 0:02:43.2]}
16... Rd8 {[%clk 0:02:28.9]} 17. Qf6 {[%clk 0:02:31.4]} 17... Bd4 {[%clk
0:02:23.3]} 18. Na4 {[%clk 0:02:30.8]} 18... Qc7 {[%clk 0:02:21.8]} 19. h4
{[%clk 0:02:28.2]} 19... Rd6 {[%clk 0:02:18.2]} 20. Qf3 {[%clk 0:02:27.9]} 20...
Qe7 {[%clk 0:02:16.5]} 21. Qg3 {[%clk 0:02:19.2]} 21... Rf6+ {[%clk 0:02:15.2]}
22. Bf3 {[%clk 0:02:19.4]} 22... Qb4 {[%clk 0:02:02.7]} 23. b3 {[%clk
0:02:19.5]} 23... Qd2 {[%clk 0:01:52.3]} 24. Re1 {[%clk 0:01:51.8]} 24... Qxa2
{[%clk 0:01:44.5]} 25. h5 {[%clk 0:01:52.1]} 25... Qxb3 {[%clk 0:01:44.4]} 26.
hxg6 {[%clk 0:01:52.2]} 26... hxg6 {[%clk 0:01:38.7]} 27. Nb2 {[%clk 0:01:24.3]}
27... Bxb2 {[%clk 0:01:30.3]} 28. Qh4 {[%clk 0:01:22.2]} 28... Qxc4+ {[%clk
0:01:23.4]} 29. Re2 {[%clk 0:01:16.5]} 29... Qc1+ {[%clk 0:01:02.9]} 30. Re1
{[%clk 0:00:56.4]} 30... Ba6+ {[%clk 0:01:02.5]} 31. Kf2 {[%clk 0:00:52.7]}
31... Bd4+ {[%clk 0:01:01.4]} 32. Kg3 {[%clk 0:00:48.5]} 32... Qf4+ {[%clk
0:00:58]} 33. Qxf4 {[%clk 0:00:48.7]} 33... exf4+ {[%clk 0:00:57.2]} 34. Kh2
{[%clk 0:00:47.9]} 34... Kg7 {[%clk 0:00:55.7]} 35. e5 {[%clk 0:00:43.4]} 35...
Rh8+ {[%clk 0:00:54.4]} 36. Bh5 {[%clk 0:00:41.5]} 36... Rxh5# {[%clk 0:00:54]}
0-1

[Event "Late-Titled-Tuesday-Blitz-February-27-2024"]
[Site "Chess.com"]
[Date "2024.02.27"]
[Round "4"]
[White "SpeedofLight0"]
[Black "ahkashefi2800"]
[Result "1-0"]
[WhiteElo "3052"]
[BlackElo "2623"]
[TimeControl "180+1"]
[EndTime "14:39:01 PST"]
[Termination "SpeedofLight0 won by resignation"]

1. b3 {[%clk 0:03:00.9]} 1... d5 {[%clk 0:02:50.9]} 2. Bb2 {[%clk 0:03:00.8]}
2... c6 {[%clk 0:02:51.3]} 3. f4 {[%clk 0:02:58.7]} 3... Nf6 {[%clk 0:02:46.3]}
4. Nf3 {[%clk 0:02:57.9]} 4... g6 {[%clk 0:02:46.4]} 5. g3 {[%clk 0:02:57.9]}
5... Bg7 {[%clk 0:02:46.6]} 6. Bg2 {[%clk 0:02:58.6]} 6... Qb6 {[%clk
0:02:46.3]} 7. e3 {[%clk 0:02:57.7]} 7... O-O {[%clk 0:02:44.7]} 8. O-O {[%clk
0:02:57.7]} 8... Bg4 {[%clk 0:02:40.2]} 9. Qe1 {[%clk 0:02:56.4]} 9... Bxf3
{[%clk 0:02:39.3]} 10. Bxf3 {[%clk 0:02:57.3]} 10... Nbd7 {[%clk 0:02:39.3]} 11.
Kh1 {[%clk 0:02:56.4]} 11... Rfe8 {[%clk 0:02:36.8]} 12. g4 {[%clk 0:02:42.9]}
12... e5 {[%clk 0:02:34.1]} 13. g5 {[%clk 0:02:43]} 13... Ne4 {[%clk 0:02:34.3]}
14. Bxe4 {[%clk 0:02:42.8]} 14... dxe4 {[%clk 0:02:33.8]} 15. f5 {[%clk
0:02:43.3]} 15... Nc5 {[%clk 0:02:06.3]} 16. Nc3 {[%clk 0:02:40.4]} 16... Rad8
{[%clk 0:02:00.3]} 17. Rd1 {[%clk 0:02:35.4]} 17... Rd7 {[%clk 0:01:55.8]} 18.
Qh4 {[%clk 0:02:18.2]} 18... Qd8 {[%clk 0:01:50.1]} 19. Ba3 {[%clk 0:02:08.2]}
19... Bf8 {[%clk 0:01:37.4]} 20. Bxc5 {[%clk 0:02:07.2]} 20... Bxc5 {[%clk
0:01:37.2]} 21. Nxe4 {[%clk 0:02:07.2]} 21... Be7 {[%clk 0:01:36.7]} 22. Rf3
{[%clk 0:01:48.1]} 22... Qa5 {[%clk 0:01:19.5]} 23. fxg6 {[%clk 0:01:21.7]}
23... fxg6 {[%clk 0:01:16.8]} 24. Rdf1 {[%clk 0:01:19.6]} 24... Bd8 {[%clk
0:00:51.9]} 25. c3 {[%clk 0:00:59]} 25... Qd5 {[%clk 0:00:51.2]} 26. c4 {[%clk
0:00:56]} 26... Qa5 {[%clk 0:00:46]} 27. Qh6 {[%clk 0:00:49.2]} 27... Rg7 {[%clk
0:00:46.2]} 28. Nd6 {[%clk 0:00:42.8]} 28... e4 {[%clk 0:00:39.7]} 29. Nxe8
{[%clk 0:00:41.1]} 1-0

[Event "Late-Titled-Tuesday-Blitz-February-27-2024"]
[Site "Chess.com"]
[Date "2024.02.27"]
[Round "4"]
[White "kai_nov"]
[Black "PNEPaul"]
[Result "1-0"]
[WhiteElo "2326"]
[BlackElo "2041"]
[TimeControl "180+1"]
[EndTime "14:39:04 PST"]
[Termination "kai_nov won by resignation"]

1. d4 {[%clk 0:03:00.9]} 1... a6 {[%clk 0:02:53.7]} 2. e4 {[%clk 0:02:57.1]}
2... d6 {[%clk 0:02:53.8]} 3. Nf3 {[%clk 0:02:52.3]} 3... g6 {[%clk 0:02:53.9]}
4. h4 {[%clk 0:02:51]} 4... h6 {[%clk 0:02:54]} 5. c4 {[%clk 0:02:48.2]} 5...
Bg7 {[%clk 0:02:53.7]} 6. h5 {[%clk 0:02:47.5]} 6... g5 {[%clk 0:02:53]} 7. Nc3
{[%clk 0:02:47.6]} 7... Nd7 {[%clk 0:02:52.9]} 8. Be3 {[%clk 0:02:47]} 8... e5
{[%clk 0:02:52.6]} 9. Bd3 {[%clk 0:02:46.2]} 9... Ne7 {[%clk 0:02:51.7]} 10. Nd5
{[%clk 0:02:44]} 10... c6 {[%clk 0:02:50]} 11. Nxe7 {[%clk 0:02:42.2]} 11...
Qxe7 {[%clk 0:02:50]} 12. d5 {[%clk 0:02:35]} 12... c5 {[%clk 0:02:48.5]} 13.
Ng1 {[%clk 0:02:30.1]} 13... O-O {[%clk 0:02:44.8]} 14. g4 {[%clk 0:02:29.1]}
14... Nf6 {[%clk 0:02:38.1]} 15. f3 {[%clk 0:02:28.1]} 15... Rb8 {[%clk
0:02:37.8]} 16. Ne2 {[%clk 0:02:21.6]} 16... b5 {[%clk 0:02:35.3]} 17. Ng3
{[%clk 0:02:21.2]} 17... Bd7 {[%clk 0:02:24]} 18. Qe2 {[%clk 0:02:15.2]} 18...
Rfc8 {[%clk 0:02:08.6]} 19. O-O {[%clk 0:02:14]} 19... b4 {[%clk 0:02:01.6]} 20.
a3 {[%clk 0:02:10.2]} 20... a5 {[%clk 0:02:00.7]} 21. axb4 {[%clk 0:02:09.6]}
21... axb4 {[%clk 0:01:59.9]} 22. Ra7 {[%clk 0:02:06]} 22... Ra8 {[%clk
0:01:59.7]} 23. Rfa1 {[%clk 0:02:05.3]} 23... Rxa7 {[%clk 0:01:59.3]} 24. Rxa7
{[%clk 0:02:06.2]} 24... Qd8 {[%clk 0:01:59.2]} 25. Qd1 {[%clk 0:02:00.9]} 25...
Qb6 {[%clk 0:01:50.2]} 26. Qa1 {[%clk 0:01:57.3]} 26... Bxg4 {[%clk 0:01:48.7]}
27. fxg4 {[%clk 0:01:53.7]} 27... Nxg4 {[%clk 0:01:48.7]} 28. Nf5 {[%clk
0:01:50]} 28... Rb8 {[%clk 0:01:30.3]} 29. Qa4 {[%clk 0:01:28.3]} 29... Nxe3
{[%clk 0:01:23.9]} 30. Nxe3 {[%clk 0:01:27.8]} 30... g4 {[%clk 0:01:16.6]} 31.
Qd7 {[%clk 0:01:20.4]} 31... Rf8 {[%clk 0:01:08.3]} 32. Nxg4 {[%clk 0:01:16.1]}
32... b3 {[%clk 0:01:07.9]} 33. Kf2 {[%clk 0:01:05.1]} 33... Qb4 {[%clk
0:01:07.2]} 34. Ke2 {[%clk 0:01:04.5]} 34... Qb8 {[%clk 0:00:54.5]} 35. Ne3
{[%clk 0:01:01.9]} 35... Kh7 {[%clk 0:00:43.8]} 36. Nf5 {[%clk 0:00:55.1]} 1-0